bitfinex/quotes_ETHUSD_20260310
["timestamp","ask_amount","ask_price","bid_price","bid_amount"]
[1773130180604,1.475,2063.0,2062.1,0.001]
[1773130180811,8.79340154,2063.2,2062.1,0.001]
[1773130180812,5.42151631,2063.2,2062.1,0.001]
[1773130181727,1.475,2063.2,2062.2,1.21229754]
[1773130181914,2.68557832,2063.5,2062.3,6.27307584]
[1773130182643,1.474,2063.5,2062.3,6.27307584]
[1773130182955,2.68747969,2063.7,2062.2,1.21229754]
[1773130182956,0.002,2063.7,2062.9,2.35346258]
[1773130183104,0.002,2063.7,2062.9,6.27307584]
[1773130183522,0.002,2063.9,2063.2,2.35346258]
[1773130183959,0.002,2063.9,2063.3,1.21165123]
[1773130184816,0.002,2064.2,2063.8,2.35346258]
[1773130185016,1.21263598,2065.1,2063.8,2.35346258]
[1773130185209,0.002,2065.1,2063.8,2.35346258]
[1773130185449,0.002,2065.1,2064.1,2.35346258]
[1773130185622,0.002,2065.1,2063.8,6.27307584]
[1773130185828,1.21264992,2065.1,2063.8,6.27307584]
[1773130186036,0.002,2065.1,2063.9,1.21129899]
[1773130187759,0.002,2065.1,2063.9,3.55871979]
[1773130188258,3.94851631,2064.9,2063.9,1.21129899]
[1773130188551,3.94851631,2064.9,2063.7,1.21141638]
[1773130189224,3.94851631,2064.9,2063.7,3.55883718]
[1773130189527,3.94851631,2064.9,2063.7,1.21141638]
[1773130189734,3.94651631,2064.8,2063.6,2.93043141]
[1773130189935,3.94651631,2064.8,2063.6,1.21143141]
[1773130190134,3.94651631,2064.6,2063.5,4.84604318]
[1773130190520,3.94651631,2064.6,2063.4,4.84618853]
[1773130190849,1.21081549,2064.8,2063.6,6.26405393]
[1773130191019,1.21272319,2064.9,2063.8,2.3474208]
[1773130191224,0.002,2064.9,2063.8,2.3474208]
[1773130191750,0.002,2064.9,2063.8,4.0624208]
[1773130192053,0.002,2064.9,2064.0,1.21124031]
[1773130192563,3.55193955,2064.9,2064.0,1.21124031]
[1773130192736,3.55193955,2064.9,2063.9,1.21127927]
[1773130193562,3.55193955,2064.9,2063.8,1.21132686]
[1773130193563,3.54993955,2064.7,2063.8,1.21132686]
[1773130194233,3.54993955,2064.7,2063.6,2.3474208]
[1773130194433,1.21081618,2064.8,2063.6,6.26405393]
[1773130194662,6.31192882,2064.9,2063.6,6.26405393]
[1773130194663,0.002,2064.9,2063.6,6.26405393]
[1773130194964,0.002,2064.9,2063.9,6.26405393]
[1773130195332,0.002,2064.9,2064.2,2.3474208]
[1773130195538,1.2126009,2065.1,2064.2,2.3474208]
[1773130195539,0.002,2065.1,2064.5,2.3474208]
[1773130195760,1.21261072,2065.1,2064.2,3.91663313]
[1773130196064,1.21261072,2065.1,2064.0,2.3474208]
[1773130196436,0.002,2065.1,2064.3,2.3474208]
[1773130196763,0.002,2065.1,2064.3,6.26405393]
[1773130197265,0.002,2065.1,2064.6,2.3474208]
[1773130197464,0.002,2065.1,2064.6,2.34587324]
[1773130198169,0.002,2064.9,2064.3,6.26405393]
[1773130198332,0.002,2064.9,2064.4,1.21100561]
[1773130200467,0.002,2065.1,2064.7,1.21082966]
[1773130200771,0.002,2065.1,2064.5,2.91890075]
[1773130201062,3.55193955,2065.1,2064.1,1.21118162]
[1773130201239,0.002,2065.1,2064.6,2.3474208]
[1773130201435,1.2102435,2065.7,2064.6,2.3474208]
[1773130201766,4.76018305,2065.7,2064.6,4.0544208]
[1773130201948,3.54993955,2065.6,2064.6,1.707]
[1773130202150,3.54993955,2065.6,2064.1,6.83481475]
[1773130202540,3.54993955,2065.4,2064.1,2.91818162]
[1773130202871,3.54993955,2065.1,2064.1,2.91818162]
[1773130203047,3.54993955,2065.4,2064.3,2.3474208]
[1773130203252,3.54993955,2065.4,2064.1,6.83481475]
[1773130203572,3.54993955,2065.4,2064.2,3.91663313]
[1773130203737,3.54993955,2065.4,2064.1,2.91818162]
[1773130204137,3.7200891,2065.2,2064.1,2.91818162]
[1773130204342,3.7200891,2065.2,2063.9,3.6628125]
[1773130204343,3.7200891,2064.9,2063.9,0.001]
[1773130204542,3.7200891,2064.7,2063.9,0.001]
[1773130204765,1.21065375,2065.0,2063.9,0.001]
[1773130204941,3.7200891,2064.9,2063.9,0.001]
[1773130205457,3.7200891,2064.7,2063.9,0.001]
[1773130206542,1.2108883,2064.6,2063.9,0.001]
[1773130206742,4.93096252,2064.7,2063.9,0.001]
[1773130207442,3.8034208,2065.2,2063.9,0.001]
[1773130207443,1.21059512,2065.1,2063.9,2.3484208]
[1773130207648,3.7200891,2065.0,2063.9,2.3484208]
[1773130207844,3.7200891,2065.0,2063.9,0.001]
[1773130208788,3.7200891,2064.8,2063.9,0.001]
[1773130209290,3.7200891,2064.8,2063.6,0.001]
[1773130209291,3.7200891,2064.3,2063.6,0.001]
[1773130209497,3.7200891,2064.0,2063.4,0.001]
[1773130209678,3.7200891,2064.0,2063.4,1.21258802]
[1773130210263,3.7200891,2064.0,2063.4,0.001]
[1773130210465,3.7200891,2064.0,2063.4,1.21259009]
[1773130210668,1.21129899,2063.9,2063.4,0.001]
[1773130211094,4.93138809,2063.9,2063.4,0.001]
[1773130211295,3.7200891,2063.8,2062.6,1.21206244]
[1773130211512,1.21128381,2064.0,2062.8,2.3474208]
[1773130211664,1.21128381,2064.0,2062.8,2.34973649]
[1773130211854,4.93137291,2064.0,2062.8,2.34973649]
[1773130212202,4.93137291,2064.0,2063.9,0.001]
[1773130212360,4.93137291,2064.0,2062.8,2.34973649]
[1773130212755,4.93137291,2064.0,2063.6,0.001]
[1773130213374,3.7200891,2063.9,2063.6,0.001]
[1773130213554,3.7200891,2063.9,2062.9,1.21188617]
[1773130213757,1.21128381,2064.0,2062.9,1.21188617]
[1773130213962,10.01677772,2064.2,2062.9,1.21188617]
[1773130214191,3.7200891,2064.1,2062.9,1.21188617]
[1773130214803,4.93132941,2064.0,2062.9,1.21188617]
[1773130215976,3.7200891,2063.9,2062.9,1.21188617]
[1773130216179,3.7200891,2063.9,2062.8,1.21190774]
[1773130216913,3.7200891,2063.7,2062.5,1.21212121]
[1773130217313,7.5083771,2063.9,2062.5,1.21212121]
[1773130217314,3.87427143,2063.9,2062.7,6.01154899]
[1773130218193,7.59436053,2063.9,2062.7,6.01154899]
[1773130218436,4.93122498,2064.2,2063.0,6.01154899]
[1773130218789,4.93122498,2064.2,2063.1,4.87358119]
[1773130218790,3.7200891,2064.2,2063.1,4.87358119]
[1773130219202,4.93122051,2064.2,2063.1,4.87358119]
[1773130219504,4.93122051,2064.2,2063.1,6.56758119]
[1773130219889,3.7200891,2064.1,2063.1,1.21176869]
[1773130220083,4.93103606,2064.5,2063.1,7.22331768]
[1773130220314,3.7200891,2064.4,2063.1,7.22331768]
[1773130221597,1.21106428,2064.3,2063.2,5.108]
[1773130221776,1.21106428,2064.3,2063.2,2.34973649]
[1773130221977,4.93115338,2064.3,2063.2,3.6618125]
[1773130222300,3.7200891,2064.2,2063.1,1.21176869]
[1773130223614,4.93121653,2064.2,2063.0,4.84707479]
[1773130223979,4.93122176,2064.2,2063.0,8.51830111]
[1773130224180,8.57047027,2064.5,2063.1,3.67122632]
[1773130224374,8.57047027,2064.5,2063.0,4.84707479]
[1773130224375,3.72663792,2064.8,2063.7,2.34973649]
[1773130224580,3.72663792,2064.8,2063.7,6.02096281]
[1773130224775,1.448,2065.2,2064.0,6.02096281]
[1773130224776,4.93918035,2065.2,2064.0,6.02096281]
[1773130225016,3.72663792,2065.1,2063.7,2.34973649]
[1773130225307,3.72663792,2064.9,2063.7,1.69]
[1773130225509,1.21254243,2065.2,2063.2,1.691]
[1773130225510,3.81318608,2064.3,2063.2,1.691]
[1773130225728,5.02230903,2064.2,2063.2,2.9026642]
[1773130226029,3.81118608,2064.1,2063.2,2.9026642]
[1773130226202,2.34973649,2064.1,2063.0,0.001]
[1773130226408,3.81118608,2064.0,2063.0,1.21281888]
[1773130227677,5.02230903,2064.2,2063.0,0.001]
[1773130227874,3.81118608,2064.1,2063.0,0.001]
[1773130229498,3.81118608,2063.9,2063.0,0.001]
[1773130230038,5.02254376,2063.8,2063.0,0.001]
[1773130230344,3.81118608,2063.6,2063.0,0.001]
[1773130230847,3.81118608,2063.6,2062.7,1.21300368]
[1773130230848,1.443,2063.6,2062.7,1.21300368]
[1773130231136,3.81118608,2063.6,2062.7,1.21300368]
[1773130231343,3.81118608,2063.6,2062.7,0.001]
[1773130231846,1.2115338,2063.5,2062.7,0.001]
[1773130232009,3.81118608,2063.4,2062.7,0.001]
[1773130234004,4.73838196,2063.3,2062.7,0.001]
[1773130234457,1.21163569,2063.4,2062.7,0.001]
[1773130234748,4.7380443,2063.9,2062.8,2.34973649]
[1773130234900,4.7380443,2063.9,2062.7,3.74834693]
[1773130235104,4.7380443,2063.9,2062.7,0.001]
[1773130235105,3.52673073,2063.8,2062.7,0.001]
[1773130235397,3.52673073,2063.7,2062.7,0.001]
[1773130236145,3.52673073,2063.5,2062.7,0.001]
[1773130237646,3.52673073,2063.5,2062.3,1.21319924]
[1773130237849,3.52673073,2063.2,2062.3,1.21319924]
[1773130238143,4.73849942,2063.1,2062.3,0.001]
[1773130238746,3.52673073,2063.0,2062.3,0.001]
[1773130239039,3.52673073,2063.0,2062.6,0.001]
[1773130240043,3.52673073,2063.0,2062.4,0.001]
[1773130240250,4.7386169,2062.9,2062.4,0.001]
[1773130243470,4.73844069,2063.2,2062.4,0.001]
[1773130244047,1.21170996,2063.2,2062.4,0.001]
[1773130244253,1.21182743,2063.0,2062.4,0.001]
[1773130244788,1.441,2063.3,2062.4,0.001]
[1773130245072,2.65266291,2063.3,2062.4,0.001]
[1773130245755,3.52673073,2063.2,2062.4,0.001]
[1773130246852,1.21176869,2063.1,2062.4,0.001]
[1773130247065,4.73849942,2063.1,2062.4,0.001]
[1773130247252,3.52673073,2063.0,2062.1,0.001]
[1773130248849,1.2117282,2063.2,2062.3,1.21223876]
[1773130249133,3.52673073,2063.1,2062.3,1.21223876]
[1773130249330,3.52673073,2063.0,2062.1,1.21331494]
[1773130249499,1.2117282,2063.2,2062.1,1.21331494]
[1773130249698,1.2117282,2063.2,2062.1,4.96066187]
[1773130250195,3.52673073,2062.8,2062.1,1.21335587]
[1773130250608,3.52673073,2062.8,2062.1,1.21332121]
[1773130251015,1.21200368,2062.7,2062.1,0.001]
[1773130251998,3.61257384,2063.1,2062.1,3.68907375]
[1773130252227,3.61257384,2063.1,2062.1,0.001]
[1773130252631,3.61257384,2062.9,2062.1,0.001]
[1773130253000,4.82451876,2062.8,2062.3,0.001]
[1773130253200,4.82651876,2062.8,2062.3,0.001]
[1773130255436,3.61457384,2062.8,2062.3,0.001]
[1773130257141,0.002,2062.8,2062.3,0.001]
[1773130257732,0.002,2063.0,2062.3,3.68907375]
[1773130259036,0.002,2063.0,2062.3,0.001]
[1773130260325,3.61457384,2063.0,2062.3,0.001]
[1773130262062,3.61457384,2063.0,2062.0,0.001]
[1773130262063,3.61257384,2062.4,2062.0,0.001]
[1773130262562,3.61257384,2062.4,2061.8,0.001]
[1773130262734,1.432,2062.7,2061.0,3.68807375]
[1773130262735,3.61257384,2062.2,2061.0,3.68807375]
[1773130263745,6.01115879,2062.0,2061.0,3.68807375]
[1773130263950,3.6614223,2062.2,2060.9,3.55152098]
[1773130264137,3.6614223,2062.0,2060.9,3.55152098]
[1773130264658,3.6614223,2061.7,2060.6,5.20252098]
[1773130264970,3.6614223,2062.1,2060.7,3.55152098]
[1773130265269,2.34973649,2061.9,2060.7,3.55152098]
[1773130265426,3.6614223,2062.2,2061.1,3.55152098]
[1773130265628,3.6614223,2062.4,2061.2,0.001]
[1773130265868,3.6614223,2062.1,2061.2,0.001]
[1773130266556,6.01115879,2062.3,2061.2,0.001]
[1773130266948,2.34973649,2062.3,2061.2,0.001]
[1773130267149,3.6614223,2062.2,2061.2,0.001]
[1773130267529,3.6614223,2062.6,2061.4,3.55152098]
[1773130267930,3.6614223,2062.4,2061.2,0.001]
[1773130268130,2.34973649,2062.2,2061.2,0.001]
[1773130268332,3.6614223,2062.1,2061.2,0.001]
[1773130268640,3.6614223,2062.5,2061.3,5.90125747]
[1773130268825,3.6614223,2062.4,2061.3,3.55152098]
[1773130269866,3.6614223,2062.1,2061.2,0.001]
[1773130270166,3.6614223,2061.9,2061.2,0.001]
[1773130270547,3.6614223,2061.9,2061.0,0.001]
[1773130270548,6.01115879,2061.9,2061.0,0.001]
[1773130270759,3.6614223,2061.9,2061.0,0.001]
[1773130274920,3.6614223,2061.6,2061.0,0.001]
[1773130276284,3.6614223,2061.5,2061.0,0.001]
[1773130276790,3.6614223,2061.8,2061.0,0.001]
[1773130278083,4.83849391,2062.0,2061.0,0.001]
[1773130278084,3.6614223,2061.6,2061.0,0.001]
[1773130278382,3.6614223,2061.3,2061.0,0.001]
[1773130278714,3.6614223,2061.6,2061.0,0.001]
[1773130279881,2.35510613,2061.6,2061.0,0.001]
[1773130280083,3.6614223,2061.5,2061.0,0.001]
[1773130280588,3.6614223,2061.2,2060.7,0.001]
[1773130282178,3.6614223,2061.0,2059.6,3.55252098]
[1773130282361,0.14948499,2061.5,2060.0,3.55152098]
[1773130282362,3.6614223,2061.5,2060.0,3.55152098]
[1773130282569,3.6614223,2061.5,2059.6,0.001]
[1773130282570,3.6614223,2061.5,2060.3,3.55152098]
[1773130283506,3.6614223,2061.5,2059.9,3.61705698]
[1773130284068,3.6614223,2061.5,2059.9,3.55152098]
[1773130284510,3.6614223,2061.5,2060.0,4.76511321]
[1773130284511,3.6614223,2061.3,2060.0,4.76511321]
[1773130284670,3.6614223,2061.2,2060.0,4.76511321]
[1773130284864,1.21276802,2061.4,2060.1,3.55152098]
[1773130285078,1.21276802,2061.4,2060.3,3.55152098]
[1773130285412,4.87419032,2061.4,2060.3,3.55152098]
[1773130286422,7.20617821,2061.7,2060.6,1.21323886]
[1773130286423,4.87401385,2061.7,2060.6,1.21323886]
[1773130286711,3.6614223,2061.7,2060.7,3.55152098]
[1773130287065,3.6614223,2061.7,2060.6,1.21323886]
[1773130287295,3.6614223,2061.7,2060.4,3.55152098]
[1773130287506,3.6614223,2061.7,2060.5,4.76477869]
[1773130288402,4.87407266,2061.6,2060.5,4.76477869]
[1773130289272,0.002,2061.8,2060.7,2.35510613]
[1773130289472,1.21259559,2061.7,2060.8,3.55152098]
[1773130290506,4.85216168,2061.8,2060.9,1.21306225]
[1773130290674,0.002,2061.4,2060.9,1.21306225]
[1773130291075,0.002,2061.8,2060.9,7.11968936]
[1773130291386,0.002,2061.6,2060.9,7.11968936]
[1773130293725,0.002,2061.6,2061.2,5.94877593]
[1773130294507,0.002,2061.6,2061.3,1.21282685]
[1773130295780,0.002,2061.9,2061.3,4.80649665]
[1773130297302,0.002,2061.9,2061.3,1.21282685]
[1773130297612,0.002,2062.0,2061.4,3.5936698]
[1773130297814,0.002,2062.0,2061.3,1.21282685]
[1773130298116,0.002,2062.0,2061.2,1.21284234]
[1773130298117,3.6360246,2062.0,2061.2,1.21284234]
[1773130298420,3.6360246,2062.0,2060.9,1.21301695]
[1773130298421,3.6340246,2061.9,2060.9,1.21301695]
[1773130298779,3.6340246,2061.7,2060.9,1.21301695]
[1773130298978,3.6340246,2061.7,2060.7,2.83613906]
[1773130299578,3.6340246,2061.7,2060.8,3.5936698]
[1773130299784,1.21251998,2061.9,2060.8,3.5936698]
[1773130300197,4.84654458,2061.9,2060.8,3.5936698]
[1773130300512,3.6340246,2061.8,2060.8,3.5936698]
[1773130300884,4.84661615,2061.7,2060.9,1.21306225]
[1773130301382,4.84661615,2061.7,2060.8,1.21309823]
[1773130301383,3.6340246,2061.6,2060.8,1.21309823]
[1773130301583,3.6340246,2061.6,2060.5,3.5946698]
[1773130301890,3.6340246,2061.6,2060.5,1.21425796]
[1773130302620,3.6340246,2061.1,2060.5,0.001]
[1773130302982,1.21300339,2061.0,2060.5,0.001]
[1773130304607,4.84702799,2061.0,2060.5,0.001]
[1773130304913,3.6340246,2060.9,2060.3,0.001]
[1773130305120,3.6340246,2060.7,2060.3,0.001]
[1773130305492,3.6340246,2060.7,2060.0,0.001]
[1773130305906,3.6340246,2060.7,2060.6,0.001]
[1773130306120,3.6340246,2060.7,2060.0,0.001]
[1773130307024,4.84726346,2060.6,2060.0,0.001]
[1773130307441,1.21294454,2061.1,2060.1,5.94877593]
[1773130307594,1.21294454,2061.1,2060.1,3.5936698]
[1773130308018,3.6340246,2061.0,2060.0,0.001]
[1773130308433,3.6340246,2060.9,2060.0,0.001]
[1773130309634,3.6340246,2061.2,2060.1,3.5936698]
[1773130311618,3.6340246,2061.0,2060.0,0.001]
[1773130311816,3.6340246,2061.0,2060.0,3.40044372]
[1773130313098,3.41374085,2060.9,2060.0,0.001]
[1773130313327,3.41374085,2060.8,2060.0,0.001]
[1773130313630,1.21312111,2060.8,2060.1,1.21353332]
[1773130314200,4.62686196,2060.8,2060.1,1.21353332]
[1773130314414,1.21303121,2061.0,2060.1,1.21353332]
[1773130314733,4.62671694,2061.1,2060.1,4.61297704]
[1773130315305,4.62671694,2061.1,2060.2,3.39944372]
[1773130315306,3.41374085,2061.1,2060.2,3.39944372]
[1773130315535,3.41374085,2061.4,2060.3,1.21341552]
[1773130315737,1.21474272,2061.5,2060.4,3.39944372]
[1773130316437,3.41374085,2061.4,2060.4,3.39944372]
[1773130317906,4.6265677,2061.3,2060.5,1.21329774]
[1773130318104,1.21282685,2061.3,2060.5,1.21329774]
[1773130318434,1.21282685,2061.3,2060.2,3.40044372]
[1773130318435,3.41374085,2061.2,2060.2,3.40044372]
[1773130318805,3.41574085,2061.2,2060.2,3.40044372]
[1773130319707,3.41574085,2061.2,2060.2,0.001]
[1773130319903,3.41374085,2061.0,2060.2,0.001]
[1773130322327,3.41374085,2060.8,2060.2,0.001]
[1773130326539,1.21317998,2060.7,2060.2,0.001]
[1773130327240,1.21317998,2060.7,2060.0,0.001]
[1773130327241,3.53093628,2060.6,2060.0,0.001]
[1773130328328,3.53093628,2060.3,2060.0,0.001]
[1773130328741,1.21347441,2060.2,2060.0,0.001]
[1773130329448,3.53093628,2060.5,2059.7,3.48762006]
[1773130330627,3.53093628,2060.5,2059.8,1.21371006]
[1773130331027,3.53093628,2060.8,2059.9,3.48662006]
[1773130331331,4.74393967,2061.0,2060.2,0.001]
[1773130331730,0.002,2060.6,2060.2,0.001]
[1773130332654,1.21329774,2060.5,2060.2,0.001]
[1773130332852,4.74423402,2060.5,2060.2,0.001]
[1773130333054,3.53093628,2060.4,2060.0,0.001]
[1773130333573,6.26619097,2060.6,2060.0,0.001]
[1773130333574,1.21526083,2060.6,2060.0,0.001]
[1773130333719,4.746176,2060.6,2060.0,0.001]
[1773130334353,3.53093628,2060.5,2060.0,0.001]
[1773130334949,4.74423929,2060.5,2060.0,0.001]
[1773130335155,1.21528578,2060.6,2060.0,0.001]
[1773130335573,1.21524092,2060.6,2060.0,0.001]
[1773130337035,0.002,2060.6,2060.0,0.001]
[1773130338151,3.53293628,2060.6,2060.0,0.001]
[1773130339227,0.002,2060.6,2060.0,0.001]
[1773130339952,3.53293628,2060.6,2060.0,0.001]
[1773130340259,3.53293628,2060.6,2059.7,1.21474247]
[1773130341381,0.002,2060.6,2059.9,3.48662006]
[1773130343351,0.002,2060.6,2060.0,4.70021229]
[1773130343662,0.002,2060.6,2060.0,1.21359223]
[1773130343870,0.002,2060.6,2060.1,3.48662006]
[1773130345069,0.002,2060.6,2060.1,3.48762006]
[1773130345878,0.002,2060.4,2060.2,1.21347441]
[1773130347763,0.002,2060.4,2060.3,3.48662006]
[1773130347936,0.002,2060.8,2060.3,3.48662006]
[1773130349762,0.002,2060.8,2060.4,1.21335662]
[1773130351537,0.002,2060.8,2060.5,3.48662006]
[1773130351739,0.002,2060.8,2060.1,0.001]
[1773130351740,3.53093628,2060.7,2060.1,0.001]
[1773130352583,3.53093628,2060.6,2060.1,0.001]
[1773130355768,1.21329774,2060.5,2060.1,0.001]
[1773130355969,3.46333518,2060.4,2060.1,0.001]
[1773130356170,3.46333518,2060.2,2059.9,0.001]
[1773130357168,3.46333518,2060.2,2059.7,1.604]
[1773130357945,1.21353332,2060.1,2059.7,1.604]
[1773130358171,4.6768685,2060.1,2059.7,1.604]
[1773130358379,4.6768685,2060.1,2059.7,0.001]
[1773130358558,3.46333518,2060.0,2059.7,0.001]
[1773130358762,4.85413329,2060.2,2059.7,0.001]
[1773130358763,3.46333518,2060.2,2059.7,0.001]
[1773130360658,1.21341568,2060.3,2059.7,0.001]
[1773130361174,4.67675628,2060.3,2059.7,0.001]
[1773130361378,3.46333518,2060.2,2059.7,0.001]
[1773130361888,0.002,2060.4,2059.8,3.16816835]
[1773130362364,0.002,2060.4,2059.9,1.21365114]
[1773130362969,3.46533518,2060.4,2059.7,2.81976329]
[1773130363583,3.46333518,2060.2,2059.7,0.001]
[1773130364381,3.46333518,2060.0,2059.7,0.001]
[1773130365481,3.46333518,2060.0,2059.4,0.001]
[1773130366379,4.67695381,2060.0,2059.4,0.001]
[1773130367350,3.46333518,2059.9,2059.4,0.001]
[1773130367977,4.67687445,2060.1,2059.4,0.001]
[1773130368666,3.46333518,2060.1,2059.4,3.16916835]
[1773130368850,4.6767507,2060.3,2059.4,3.16916835]
[1773130369974,3.46333518,2060.2,2059.4,3.16916835]
[1773130370287,1.21538077,2060.4,2059.4,3.16916835]
[1773130370455,3.13828837,2060.4,2059.5,1.21388686]
[1773130370888,3.13628837,2060.3,2059.5,1.21388686]
[1773130371178,0.002,2060.4,2059.6,3.26269553]
[1773130371351,3.13828837,2060.4,2059.6,0.001]
[1773130372083,3.13628837,2060.3,2059.6,0.001]
[1773130372583,3.13628837,2060.1,2059.6,0.001]
[1773130373977,3.13628837,2060.0,2059.4,0.001]
[1773130374684,4.34988882,2060.0,2059.4,0.001]
[1773130377376,3.13628837,2060.0,2059.4,0.001]
[1773130377576,4.34989061,2060.0,2059.4,0.001]
[1773130377992,3.13628837,2060.0,2059.4,0.001]
[1773130378190,4.34988112,2060.0,2059.4,0.001]
[1773130379990,3.13628837,2059.9,2059.4,0.001]
[1773130380878,4.34999843,2059.8,2059.4,0.001]
[1773130381199,3.13628837,2059.8,2059.4,0.001]
[1773130382109,3.13628837,2059.6,2059.1,0.001]
[1773130382411,2.35709975,2059.7,2058.7,2.81732358]
[1773130382412,3.13628837,2059.4,2058.7,2.81732358]
[1773130382918,4.35029312,2059.3,2058.7,2.81735844]
[1773130383099,3.13628837,2059.2,2058.3,3.26169553]
[1773130383601,3.13628837,2059.2,2058.2,2.81759456]
[1773130384010,1.413,2059.2,2058.2,2.81759456]
[1773130384180,3.32297962,2059.1,2058.2,2.81759456]
[1773130384381,3.32297962,2059.1,2058.2,5.98323714]
[1773130384588,3.32297962,2059.1,2058.3,3.16564258]
[1773130384990,4.53714621,2059.1,2058.4,1.21453556]
[1773130385505,3.32297962,2059.0,2058.4,1.21453556]
[1773130385708,4.53702356,2059.3,2058.4,4.38017814]
[1773130386082,6.26879056,2059.4,2058.4,4.38017814]
[1773130386083,3.32297962,2059.2,2058.4,4.38017814]
[1773130387195,3.32297962,2059.2,2058.2,2.81760579]
[1773130387196,3.32297962,2059.1,2058.2,2.81760579]
[1773130387379,3.32297962,2059.1,2058.3,3.16564258]
[1773130387909,3.32297962,2059.3,2058.3,3.16564258]
[1773130388077,4.53698666,2059.3,2058.3,3.16564258]
[1773130388278,3.32297962,2059.3,2058.3,3.16564258]
[1773130389107,4.53690936,2059.5,2058.3,3.16564258]
[1773130389311,4.53690936,2059.5,2058.5,3.16564258]
[1773130389781,3.32297962,2059.5,2058.5,3.16564258]
[1773130390311,2.35709975,2059.8,2058.5,3.16564258]
[1773130390312,4.53674229,2059.8,2058.5,3.16564258]
[1773130390478,4.53674229,2059.8,2058.4,3.57163531]
[1773130390479,3.32497962,2060.1,2058.8,3.16564258]
[1773130390684,4.53852634,2060.1,2059.0,3.16564258]
[1773130391181,4.53852634,2060.1,2059.2,3.16564258]
[1773130391508,4.53852555,2060.1,2059.2,3.16564258]
[1773130392481,3.32497962,2060.1,2059.2,3.16564258]
[1773130392678,4.53852751,2060.1,2059.2,3.16564258]
[1773130393308,4.53852751,2060.1,2059.3,1.21400475]
[1773130394120,4.53852751,2060.1,2059.3,4.37964733]
[1773130394491,3.32497962,2060.1,2059.3,4.37964733]
[1773130394896,3.32497962,2060.1,2059.4,3.16564258]
[1773130395303,3.32497962,2060.1,2059.5,1.21388686]
[1773130395812,4.53852015,2060.1,2059.5,1.21388686]
[1773130396114,0.002,2060.1,2059.5,1.21388686]
[1773130396318,0.002,2059.9,2059.5,1.21388686]
[1773130397225,0.002,2059.9,2059.5,4.37952944]
[1773130397615,0.002,2060.1,2059.6,3.16564258]
[1773130398547,0.002,2060.3,2059.7,3.16564258]
[1773130398898,0.002,2060.3,2059.6,3.16564258]
[1773130399708,0.002,2060.3,2059.7,1.21376899]
[1773130399913,3.32497962,2060.3,2059.7,1.21376899]
[1773130400746,3.32497962,2060.3,2059.6,4.37944895]
[1773130400904,3.32497962,2060.3,2059.5,1.21384095]
[1773130401814,3.32297962,2060.1,2059.5,1.21384095]
[1773130402149,3.32297962,2060.1,2059.4,1.602]
[1773130402341,3.32297962,2060.1,2059.4,2.81593761]
[1773130402828,3.32297962,2060.1,2059.4,5.98158019]
[1773130403032,3.32297962,2060.1,2059.4,1.602]
[1773130403231,3.32297962,2060.1,2059.4,2.81594458]
[1773130403437,3.32297962,2060.1,2059.4,1.602]
[1773130403941,3.32297962,2059.9,2059.4,2.81594549]
[1773130404530,3.32297962,2059.9,2059.4,1.602]
[1773130404731,3.32297962,2059.9,2059.4,2.81594346]
[1773130404938,3.32297962,2059.9,2059.4,1.602]
[1773130405434,3.32297962,2059.9,2059.4,2.81594224]
[1773130406732,3.32297962,2060.1,2059.4,2.81594224]
[1773130406913,4.53844011,2060.3,2059.5,3.16564258]
[1773130407114,3.32297962,2060.2,2059.5,3.16564258]
[1773130407942,3.32297962,2060.2,2059.6,0.001]
[1773130408441,0.002,2060.1,2059.6,3.16664258]
[1773130408616,0.002,2060.1,2059.7,1.21376899]
[1773130408938,3.32497962,2060.1,2059.7,1.21376899]
[1773130409616,3.32497962,2060.1,2059.6,0.001]
[1773130410350,3.32497962,2060.1,2059.6,1.21482618]
[1773130411246,1.21359223,2060.0,2059.6,0.001]
[1773130411436,3.32297962,2059.9,2059.6,0.001]
[1773130412955,3.32297962,2059.9,2059.4,0.001]
[1773130413323,3.32297962,2059.7,2059.4,0.001]
[1773130416156,4.29124947,2059.9,2059.4,0.001]
[1773130416530,3.07759212,2059.8,2059.4,0.001]
[1773130417642,3.07759212,2060.0,2059.4,3.27061507]
[1773130419524,3.07759212,2060.0,2059.5,1.21388686]
[1773130420035,3.07759212,2060.0,2059.6,0.001]
[1773130420442,0.002,2059.8,2059.6,0.001]
[1773130421325,0.002,2060.0,2059.6,3.27061507]
[1773130421526,0.002,2060.0,2059.7,1.21376899]
[1773130421746,0.002,2060.0,2059.7,4.48338406]
[1773130423342,0.002,2060.0,2059.8,3.26961507]
[1773130423546,0.002,2060.3,2059.8,3.26961507]
[1773130423736,0.002,2060.3,2059.9,1.21365114]
[1773130424054,3.07959212,2060.3,2059.9,1.21365114]
[1773130425933,3.07959212,2060.3,2059.8,4.85460459]
[1773130426133,0.002,2060.3,2059.8,8.12421966]
[1773130426335,0.002,2060.3,2059.8,4.85460459]
[1773130426532,0.002,2060.3,2059.9,3.26961507]
[1773130426734,0.002,2060.3,2059.8,4.85460459]
[1773130428267,0.002,2060.3,2059.8,6.45860459]
[1773130428831,0.002,2060.4,2059.8,9.72821966]
[1773130429037,0.002,2060.4,2060.0,2.35875134]
[1773130429236,0.002,2060.4,2060.1,3.26961507]
[1773130429541,0.002,2060.4,2060.3,3.26961507]
[1773130429945,0.002,2060.4,2060.3,4.48303059]
[1773130430961,0.002,2060.4,2059.9,3.11815902]
[1773130431334,0.002,2060.4,2060.1,3.11815902]
[1773130431968,0.002,2060.4,2060.2,1.21347441]
[1773130432466,0.002,2060.4,2060.1,1.21350103]
[1773130433768,0.002,2060.2,2060.1,1.21350103]
[1773130434270,0.002,2060.6,2060.1,4.33166005]
[1773130434867,3.09589803,2060.6,2060.1,1.21350103]
[1773130438956,3.09389803,2060.5,2060.0,1.607]
[1773130439475,3.09389803,2060.5,2059.8,0.001]
[1773130439640,3.57401379,2060.6,2059.8,0.001]
[1773130439641,3.09389803,2060.2,2059.8,0.001]
[1773130439841,3.09389803,2060.2,2059.8,1.21470106]
[1773130440046,3.09389803,2060.2,2059.8,0.001]
[1773130440954,4.30740365,2060.2,2059.8,0.001]
[1773130441158,3.09389803,2060.1,2059.8,0.001]